Cogmind - Beta 14 @@@ ROGUE MODE // 2024.08.25 @ 07:49:49 Player: gamerman Result: Destroyed by G-34 Mercenary with Small Laser Performance ------------- Evolutions (0) 0 Regions Visited (3) 600 Robots Destroyed (18) 90 Value Destroyed (676) 676 Prototype IDs (24) 480 Alien Tech Used (0) 0 Bonus (267) 267 TOTAL SCORE: 2113 Bonus ------- Aligned with FarCom 300 Friendly Fire -33 Cogmind --------- Core Integrity 0/250 Matter 190/300 Energy 89/100 System Corruption 1% Temperature Cool (6) Movement Core (50) Location -10/Exiles Parts ------- > --- POWER (1) -------- (None) > --- PROPULSION (2) --- (None) > --- UTILITY (2) ------ (None) > --- WEAPON (2) ------- (None) > --- INVENTORY (5) ---- Lightpack 2.0 Skeleton Box Light Assault Rifle Peak State ------------ > --- POWER ------------ Light Nuclear Core > --- PROPULSION ------- Improved Hover Unit Improved Hover Unit > --- UTILITY ---------- Chronowheel > --- WEAPON ----------- Rocket Launcher Rocket Launcher > --- INVENTORY -------- Light Assault Rifle [Rating: 24] Favorites ----------- Power Light Ion Engine Engine Light Ion Engine Power Core Light Nuclear Core Propulsion Improved Hover Unit Treads Light Treads Hover Unit Improved Hover Unit Utility Chronowheel Device Chronowheel Storage Huge Storage Unit Weapon Rocket Launcher Energy Gun Medium Laser Ballistic Gun Light Assault Rifle Launcher Rocket Launcher Build | -11 -10 -10 -10 ------- Run | Yrd Mat Min Exi Slots Evolved . | . . . . Power . | . . . . Propulsion . | . . . . Utility . | . . . . Weapon . | . . . . Parts Attached 17 | 5 4 3 5 Power 3 | 1 1 . 1 Engine 2 | 1 1 . . Core 1 | . . . 1 Reactor . | . . . . Propulsion 7 | 2 2 1 2 Treads 2 | 2 . . . Leg . | . . . . Wheel . | . . . . Hover 5 | . 2 1 2 Flight . | . . . . Utility 3 | . 1 1 1 Device 2 | . . 1 1 Storage 1 | . 1 . . Processor . | . . . . Hackware . | . . . . Protection . | . . . . Artifact . | . . . . Weapon 4 | 2 . 1 1 Energy Gun 1 | 1 . . . Energy Cannon . | . . . . Ballistic Gun 1 | 1 . . . Ballistic Cannon . | . . . . Launcher 2 | . . 1 1 Special Weapon . | . . . . Impact Weapon . | . . . . Slashing Weapon . | . . . . Piercing Weapon . | . . . . Special Melee Weapon . | . . . . Unidentified Prototypes 2 | . . 1 1 Parts Lost 8 | . 1 1 6 Power 2 | . 1 . 1 Propulsion 4 | . . 1 3 Utility . | . . . . Weapon 2 | . . . 2 Highest Loss Streak 5 | . 1 1 5 To Critical Strikes . | . . . . Average Slot Usage (%) 58 | . 71 53 51 Engine 11 | . 14 14 6 Core 2 | . . . 6 Treads 7 | . 24 . . Hover 16 | . 3 23 20 Energy Gun 4 | . 14 . . Ballistic Gun 4 | . 14 1 . Launcher 10 | . . 13 17 Peak Build Rating 24 | 5 8 16 24 Average Rating 6 | 4 5 6 9 On Entrance 4 | . 5 8 5 Naked Turns 2 | . . . 2 Heaviest Build 13 | 6 6 8 13 Greatest Support 40 | 40 40 14 14 Greatest Overweight (x) 1 | 1 . . 1 Average Overweight (x) . | . . . . Largest Inventory Capacity 25 | 5 25 5 5 Average Capacity 5 | 5 5 5 5 Most Carried 5 | 2 5 5 5 Average Carried 3 | 1 3 4 4 Final Capacity 5 | 5 5 5 5 Final Carried 5 | 2 5 4 5 Class Distribution -------------------- 100% | Mutant Dominant Class ---------------- Mutant | -10/Materials Mutant | -10/Mines Mutant | -10/Exiles Resources | -11 -10 -10 -10 ----------- Run | Yrd Mat Min Exi Matter Collected 487 | 239 68 64 116 Remotely . | . . . . Salvage Created 471 | . 123 100 248 Parts 25 | . 10 3 12 Haulers Intercepted . | . . . . Recyclers Shooed 1 | . 1 . . Parts Field Recycled . | . . . . Retrieved Matter . | . . . . Parts Self-Destructed . | . . . . Prevented . | . . . . Kills | -11 -10 -10 -10 ------- Run | Yrd Mat Min Exi Combat Hostiles Destroyed 16 | . 2 6 8 Guns 2 | . 2 . . AOE 14 | . . 6 8 Classes Destroyed 6 | . 3 . 3 Builder 1 | . 1 . . Watcher 1 | . 1 . . Grunt 13 | . 2 6 5 Brawler 1 | . . . 1 Hunter 1 | . . . 1 Programmer 1 | . . . 1 Best Kill Streak 4 | . 2 2 4 Combat Bots Only 4 | . 1 2 4 Max Kills in Single Turn 3 | . 1 1 3 Gunslinging . | . . . . Exploded 3 | . . 1 3 Melee . | . . . . Uniques/NPCs Destroyed . | . . . . Combat | -11 -10 -10 -10 -------- Run | Yrd Mat Min Exi Hostile Shots Fired 70 | . 22 17 31 Missed 26 | . 5 8 13 Damage Taken 799 | . 241 127 431 Core 250 | . 47 32 171 Absorbed by Shields . | . . . . Core Remaining (%) 100 | 100 . . . Volleys Fired 40 | . 22 13 5 Largest 2 | . 2 2 2 Hottest 70 | . 70 53 66 Shots Fired 66 | . 41 16 9 Gun 44 | . 41 3 . Cannon . | . . . . Launcher 22 | . . 13 9 Special . | . . . . Kinetic 25 | . 22 3 . Thermal 19 | . 19 . . Explosive 22 | . . 13 9 Electromagnetic . | . . . . Robot Hit Streak 10 | . 8 10 . Robot Miss Streak 5 | . 5 2 1 Penetration Max . | . . . . Secondary Targets . | . . . . Shots Hit Robots 38 | . 26 12 . Core Hits 45 | . 11 14 20 Critical Kills . | . . . . Critical Parts Destroyed . | . . . . Critical Strikes 1 | . 1 . . Burn 1 | . 1 . . Melee Attacks . | . . . . Impact . | . . . . Slashing . | . . . . Piercing . | . . . . Sneak Attacks . | . . . . Combat Hostiles . | . . . . Follow-up Attacks . | . . . . Damage Inflicted 1676 | . 258 690 728 Guns 278 | . 258 20 . Cannons . | . . . . Explosions 1398 | . . 670 728 Melee . | . . . . Ramming . | . . . . Kinetic 142 | . 122 20 . Thermal 136 | . 136 . . Explosive 1398 | . . 670 728 Electromagnetic . | . . . . Impact . | . . . . Slashing . | . . . . Piercing . | . . . . Highest Corruption 1 | . . . 1 Average Corruption 1 | . . . 1 Corruption Purged . | . . . . Corruption Blocked . | . . . . Effects 1 | . . . 1 Message Errors 1 | . . . 1 Overload Shots . | . . . . Overflow Damage 2 | . . 2 . Projectiles . | . . . . Explosions 2 | . . 2 . Melee . | . . . . Knockbacks . | . . . . Impact . | . . . . Kinetic . | . . . . Secondary . | . . . . Self-Inflicted Damage 36 | . . . 36 Shots 1 | . . . 1 Rammed . | . . . . Targets Rammed . | . . . . Kicked . | . . . . Crushed . | . . . . Highest Temperature 140 | . 140 32 38 Average Temperature 47 | . 62 15 16 Received Heat Transfer 219 | . 117 72 30 Siege Activations . | . . . . Robots Corrupted . | . . . . Combat Hostiles . | . . . . Parts Fried . | . . . . Impact Corruptions . | . . . . Robots Melted . | . . . . Combat Hostiles . | . . . . Parts Melted 1 | . 1 . . Heat Transferred 481 | . 481 . . Parts Sabotaged . | . . . . Parts Stolen . | . . . . Parts Stripped . | . . . . Power Chain Reactions . | . . . . Alert | -11 -10 -10 -10 ------- Run | Yrd Mat Min Exi Peak Influence 248 | . 78 248 . Initial 30 | . . 30 . Average 87 | . 30 177 . Maximum Alert Level 1 | . . 1 . Low Security (%) 86 | 100 100 67 . Level 1 13 | . . 32 . Level 2 . | . . . . Level 3 . | . . . . Level 4 . | . . . . Level 5 . | . . . . High Security . | . . . . Max Security . | . . . . Squads Dispatched . | . . . . Investigation . | . . . . Extermination . | . . . . Reinforcement . | . . . . Assault . | . . . . Garrison . | . . . . Intercept . | . . . . Searches Triggered . | . . . . Construction Impeded . | . . . . Haulers Reinforced . | . . . . Active Scanning Responses . | . . . . Cargo Convoy Interrupts . | . . . . Stealth | -11 -10 -10 -10 --------- Run | Yrd Mat Min Exi Distress Signals . | . . . . Communications Jammed . | . . . . Distress Signals . | . . . . Times Spotted 41 | . 8 6 27 Peak Tracking Total 23 | . 3 2 23 Tactical Retreats 4 | . 1 . 3 Traps | -11 -10 -10 -10 ------- Run | Yrd Mat Min Exi Traps Triggered 1 | . 1 . . Indirectly . | . . . . Trap Hack Attempts . | . . . . Triggered . | . . . . Disarmed . | . . . . Reprogrammed . | . . . . Reused . | . . . . Traps Extracted . | . . . . Installed . | . . . . Triggered . | . . . . Machines | -11 -10 -10 -10 ---------- Run | Yrd Mat Min Exi Machines Disabled 3 | . . 1 2 Max in Single Turn 1 | . . 1 1 Machines Repaired . | . . . . Machines Dismantled . | . . . . Machines Sabotaged . | . . . . Overloaded Fab Kills . | . . . . Hacking | -11 -10 -10 -10 --------- Run | Yrd Mat Min Exi Machines Accessed 5 | . 3 . 2 Terminals 2 | . 2 . . Fabricators . | . . . . Repair Stations . | . . . . Recycling Units 1 | . 1 . . Scanalyzers . | . . . . Garrison Access . | . . . . Total Hacks 13 | . 5 . 8 Successful 12 | . 4 . 8 Failed 1 | . 1 . . Catastrophic . | . . . . Database Lockouts . | . . . . Manual 4 | . 3 . 1 Terminals 4 | . 4 . . Fabricators . | . . . . Repair Stations . | . . . . Recycling Units 1 | . 1 . . Scanalyzers . | . . . . Garrison Access . | . . . . Terminal Hacks 9 | . 1 . 8 Record 7 | . . . 7 Branch Access Points 1 | . 1 . . Derelict Proto ID Bank 1 | . . . 1 Fabricator Hacks . | . . . . Repair Station Hacks . | . . . . Recycling Unit Hacks 1 | . 1 . . Report Inventory 1 | . 1 . . Scanalyzer . | . . . . Garrison Access Hacks . | . . . . Unauthorized Hacks 2 | . 2 . . Terminals 2 | . 2 . . Botnet 2 | . 2 . . Fabricators . | . . . . Repair Stations . | . . . . Recycling Units . | . . . . Scanalyzers . | . . . . Garrison Access . | . . . . Data Cores Recovered . | . . . . Used . | . . . . Hacking Detections 2 | . 2 . . Full Trace Events . | . . . . Feedback Events . | . . . . Feedback Blocked . | . . . . Robot Schematics Acquired . | . . . . Robots Built . | . . . . Authchips . | . . . . Time . | . . . . Total Robot Build Rating . | . . . . Part Schematics Acquired . | . . . . Parts Built . | . . . . Authchips . | . . . . Time . | . . . . Total Part Build Rating . | . . . . Parts Repaired . | . . . . Time . | . . . . Parts Recycled . | . . . . Recycled Matter . | . . . . Retrieved Matter . | . . . . Retrieved Components . | . . . . Parts Scanalyzed . | . . . . Part Schematics Acquired . | . . . . Parts Damaged . | . . . . Bothacking | -11 -10 -10 -10 ------------ Run | Yrd Mat Min Exi Used RIF Installer . | . . . . Robots Hacked . | . . . . Non-combat . | . . . . Combat . | . . . . Robot Hacks Applied . | . . . . Relay Couplers Released . | . . . . Fabnet Peak Effective % . | . . . . Robots Rewired . | . . . . Allies Hacked . | . . . . Hacks Repelled . | . . . . Allies | -11 -10 -10 -10 -------- Run | Yrd Mat Min Exi Total Allies 2 | . . 2 . Largest Group 2 | . . 2 1 Highest-Rated Group 42 | . . 42 31 Highest-Rated Ally 31 | . . 31 31 Total Orders . | . . . . Ally Attacks . | . . . . Total Damage . | . . . . Kills . | . . . . Allies Corrupted . | . . . . Allies Melted . | . . . . Intel | -11 -10 -10 -10 ------- Run | Yrd Mat Min Exi Robot Analysis Total . | . . . . Derelict Logs Recovered 1 | . . 1 . Drone Launches . | . . . . Drone Recoveries . | . . . . Exploration | -11 -10 -10 -10 ------------- Run | Yrd Mat Min Exi Turns Passed 869 | 83 245 238 303 Spaces Moved 998 | 58 128 339 473 Core 19 | 18 . . 1 Treads 138 | 40 98 . . Legs . | . . . . Wheels . | . . . . Hover 841 | . 30 339 472 Flight . | . . . . Fastest Speed 50 | 50 56 56 56 Average Speed 71 | 128 135 57 58 Slowest Speed 160 | 160 160 60 100 Overloaded Moves . | . . . . Propulsion Burnouts . | . . . . Robots Hopped . | . . . . Cave-ins Triggered . | . . . . Exploration Rate (%) 42 | 4 34 68 62 Regions Visited 3 Branch Regions 2 Pre-discovered Areas . | . . . . Known Exits Taken 1 | . 1 . . Unknown Exits Taken 2 | 1 . 1 . Scrap Searched 1 | . . 1 . Spaces Dug . | . . . . Terrain Destroyed 137 | . . 85 52 Melee . | . . . . Projectile . | . . . . AOE 137 | . . 85 52 Terrain Rammed . | . . . . Walls Destroyed . | . . . . Machines Disabled . | . . . . Actions | -11 -10 -10 -10 --------- Run | Yrd Mat Min Exi Total 1086 | 64 162 368 492 Wait 10 | . 1 9 . Move 995 | 57 127 338 473 Hop . | . . . . Pick Up 11 | 2 4 1 4 Fast Attach 11 | 5 3 1 2 Attach 5 | . 1 2 2 Detach 1 | . 1 . . Swap 1 | . . . 1 Drop 11 | . 3 4 4 Fire 40 | . 22 13 5 Melee . | . . . . Ram . | . . . . Kick . | . . . . Crush . | . . . . Escape Stasis . | . . . . Rewire 1 | . . . 1 Trap . | . . . . Miscellaneous . | . . . . Route ------- -11/Scrapyard -10/Materials (discovered 3 exits: [*Mat] / *Min x2) -10/Mines (discovered 2 exits: [*Mat] / *Exi) -10/Exiles (discovered 1 exit: [*Min]) History --------- Turn | Location | Event 13 | -11/Scrapyard | Discovered new exit (range 15) 84 | -11/Scrapyard | Entered Materials 186 | -10/Materials | Discovered new exit (range 3) 318 | -10/Materials | Identified exit to Mines 319 | -10/Materials | Build established: Mutant 329 | -10/Materials | Entered Mines 403 | -10/Mines | Received a Rocket Launcher from a helpful Derelict 465 | -10/Mines | Discovered new exit (range 6) 514 | -10/Mines | Found a damaged Exp. Sensor Array with a note attached 516 | -10/Mines | Found Prototype Device 516 | -10/Mines | Identified Exp. Sensor Array 564 | -10/Mines | Deemed a non-threat by the Exiles lab entrance 564 | -10/Mines | Discovered new exit (range 5) 567 | -10/Mines | Entered Exiles 567 | -10/Exiles | Accompanied by 1 ally 577 | -10/Exiles | Discovered new exit (range 15) 597 | -10/Exiles | Led the pair of lost Derelicts to a safe place 598 | -10/Exiles | Met 8R-AWN 609 | -10/Exiles | Met EX-HEX 630 | -10/Exiles | Met EX-BIN 639 | -10/Exiles | Aligned with FarCom system 640 | -10/Exiles | Given EX-Vault access code 665 | -10/Exiles | Opened EX-Vault 684 | -10/Exiles | Warned to stay clear of 0b10 Research branches 690 | -10/Exiles | Exiles lab attacked by MAIN.C 724 | -10/Exiles | Found Prototype Device 724 | -10/Exiles | Identified Chronowheel 724 | -10/Exiles | Activated Chronowheel 730 | -10/Exiles | Found Lightpack 2.0 732 | -10/Exiles | Found Skeleton Box 795 | -10/Exiles | Lost 3 allies 859 | -10/Exiles | Attacked by the Exiles 862 | -10/Exiles | Core integrity fell below 50% 870 | -10/Exiles | Core integrity fell below 20% 870 | -10/Exiles | Destroyed by G-34 Mercenary with Small Laser Last Messages --------------- 00827_ P-60 Hacker hacks 02-4ES(g), rebooting. 00847_ /ZSWWH0RR8DB F>:0KC LM96B|HMIAD6ZJ8Z=1R 00858_ P-60 Hacker destroyed. 00859_ EXILES: Additional hostile detected within perimeter. 00863_ Acquired 3 matter. 00863_ H-55 Commando destroyed. 00865_ Acquired 5 matter. 00865_ Acquired 6 matter. 00865_ Lgt. Nuclear Core destroyed. 00865_ Imp. Hover Unit destroyed. 00865_ Knocked back. 00866_ Acquired 1 matter. 00867_ Imp. Hover Unit destroyed. 00867_ Machine disabled. 00867_ Rocket Launcher destroyed. 00868_ Acquired Gravmag System. 00869_ Slug penetrates G-34 Mercenary. 00869_ G-34 Mercenary destroyed. 00869_ Gravmag System destroyed. Map ----- +----------------------------------------------------+ | ????????????????????????????#" """ #????? | | ????????????????????????????#" """""""""#????? | | ???????????????????????????##" ###########????? | | ??????????????????????????##"" #??????????????? | | ???????????????????????####"" #??????????????? | | ?????????????????????#""""""" ##?????????????? | | ?????????????????????""" " "" ##???########## | | ???????????????????" """ " #####""""""""" | | ?????????????????? " " " """ """ | | ??????????????? "" " | | ??????????????? " " | | ??????????????? " | | ???????????????? " | | ?????????????? | | ???????????? """""" | | ?????????? ######""" | | ????????? ""#?????#####""" | | ????????" """#??????????##""" | | ???????" """?????????????#"""" | | ??????"" ""#???????????##"" | | ??????" #######??####"""" | | ??????"" !%aa####""" h h | | ??????" = """" gh b | | ??????"" * gg=%= | | ?????#"""" %![ g | | ??????# @[%[ l " | | ??????#" ! %% "" """ | | ??????#"""" ""## ##""" " " ""#" | | ??????#"" % %#### ######""" """##""" | | ??????#" " ""##??# #????###""""###### | | ??????#""" """#???# #??????######????? | | ???????# ""##???! ????????????????? | | ???????#"" """##???#" ????????????????? | | ???????##""" z ##????#" ???????????????? | | ????????##"""" ##?????#!!""!???????????????? | | ?????????### %#??????#######??????????????? | | ???????????##### ##???????????????????????????? | | ???????????????## #????????????????????????????? | | ????????????????# #????????????????????????????? | | ????????????????# #????????????????????????????? | | ????????????????# #????????????????????????????? | | ????????????????# #????????????????????????????? | | ????????????????# #????????????????????????????? | | ????????????????# #????????????????????????????? | | ????????????????# #????????????????????????????? | | ????????????????# #????????????????????????????? | | ????????????????# #????????????????????????????? | | ???????????###### #####????????????????????????? | | ???????????"""""" """""????????????????????????? | | ???????? "#?????????????????????? | +----------------------------------------------------+ Best States ------------- Heat Dissipation 25 Energy Generation 14 Energy Capacity 160 Matter Stores 300 Matter Capacity 300 Sight Range 16 Terrain Scan Density 10 Evasion (%) 53 Recoil Reduction 2 Item Schematics ----------------- None Robot Schematics ------------------ None Fabricated ------------ Nothing Alien Tech Used ----------------- None Achievements -------------- None Challenges ------------ None Game ------ Seed ThermicLongswordSpecial Manual? 0 Play Time 00:15:58 Cumulative 27.7 hours Start 2024.08.24 @ 17:43:59 End 2024.08.25 @ 07:49:49 Sessions 1 Manual Loads 0 Difficulty Rogue Special Mode None Game No. 32 Rogue 32 Adventurer 0 Explorer 0 Win Type - Total 1 Types 1/0/0/0/0/0/0/0/0 Lore% 23 Gallery% 32 Achievement% 37 Wizard Run 0 Options --------- Layout 1 ASCII 0 Keyboard 0 Movement Vi Keybinds 0 Fullscreen 1 Font 24/Smallcaps Map View 50x35 Zoom Use 0% Tactical HUD 1 Map Filters NONE Filters NONE Steam 1 RUN: bc663050-335f-44fd-b2f7-7ff1e12f939d